[Event "Titled Tuesday Blitz November 14 Late 2023"]
[White "ExchangeAB"]
[Black "Acosta Cruz, Oscar Yosimar"]
[BlackFideId "5111269"]
[WhiteElo "2440"]
[BlackElo "2230"]
[Result "1-0"]
[Round "10"]
[TimeControl "180+1"]
[Date "2023.11.14"]
[WhiteClock "0:00:24"]
[BlackClock "0:00:04"]
[Board "71"]

1. Nf3 {[%clk 0:03:00]}  d5 {[%clk 0:02:49]} 2. b3 {[%clk 0:03:01]}  Nf6 {[%clk 0:02:49]} 3. e3 {[%clk 0:03:01]}  Bf5 {[%clk 0:02:50]} 4. Be2 {[%clk 0:02:59]}  e6 {[%clk 0:02:50]} 5. d3 {[%clk 0:03:00]}  Bd6 {[%clk 0:02:51]} 6. Nh4 {[%clk 0:02:59]}  Bg6 {[%clk 0:02:50]} 7. Bb2 {[%clk 0:02:58]}  O-O {[%clk 0:02:50]} 8. Nxg6 {[%clk 0:02:58]}  hxg6 {[%clk 0:02:50]} 9. Nd2 {[%clk 0:02:58]}  c5 {[%clk 0:02:50]} 10. h4 {[%clk 0:02:51]}  Nc6 {[%clk 0:02:48]} 11. h5 {[%clk 0:02:51]}  gxh5 {[%clk 0:02:36]} 12. Bxh5 {[%clk 0:02:52]}  e5 {[%clk 0:02:37]} 13. Qf3 {[%clk 0:02:44]}  Qd7 {[%clk 0:02:34]} 14. e4 {[%clk 0:02:38]}  Rfe8 {[%clk 0:02:22]} 15. Qg3 {[%clk 0:02:30]}  Nd4 {[%clk 0:02:15]} 16. Bd1 {[%clk 0:02:20]}  dxe4 {[%clk 0:01:44]} 17. Nxe4 {[%clk 0:02:16]}  Nxe4 {[%clk 0:01:39]} 18. dxe4 {[%clk 0:02:17]}  Qe6 {[%clk 0:01:33]} 19. Qh4 {[%clk 0:02:11]}  Kf8 {[%clk 0:01:28]} 20. c3 {[%clk 0:02:06]}  Nc6 {[%clk 0:01:20]} 21. Bg4 {[%clk 0:02:05]}  Qf6 {[%clk 0:01:16]} 22. Qxf6 {[%clk 0:01:48]}  gxf6 {[%clk 0:01:16]} 23. Rd1 {[%clk 0:01:46]}  Ke7 {[%clk 0:01:15]} 24. Ke2 {[%clk 0:01:43]}  Rh8 {[%clk 0:01:14]} 25. Bh3 {[%clk 0:01:42]}  Rad8 {[%clk 0:01:13]} 26. Rd2 {[%clk 0:01:41]}  a5 {[%clk 0:01:10]} 27. Rhd1 {[%clk 0:01:41]}  b5 {[%clk 0:00:58]} 28. Rd3 {[%clk 0:01:33]}  b4 {[%clk 0:00:54]} 29. Rd5 {[%clk 0:01:14]}  bxc3 {[%clk 0:00:33]} 30. Bxc3 {[%clk 0:01:15]}  Nd4+ {[%clk 0:00:33]} 31. Bxd4 {[%clk 0:01:15]}  exd4 {[%clk 0:00:33]} 32. Kd3 {[%clk 0:01:01]}  Rb8 {[%clk 0:00:26]} 33. f4 {[%clk 0:00:51]}  Bxf4 {[%clk 0:00:14]} 34. Rxc5 {[%clk 0:00:49]}  Be5 {[%clk 0:00:15]} 35. Rxa5 {[%clk 0:00:48]}  Ra8 {[%clk 0:00:14]} 36. Rxa8 {[%clk 0:00:45]}  Rxa8 {[%clk 0:00:15]} 37. Rd2 {[%clk 0:00:45]}  Ra7 {[%clk 0:00:14]} 38. Rc2 {[%clk 0:00:45]}  Kd6 {[%clk 0:00:14]} 39. Bc8 {[%clk 0:00:39]}  Ra8 {[%clk 0:00:12]} 40. Bb7 {[%clk 0:00:37]}  Rg8 {[%clk 0:00:12]} 41. a4 {[%clk 0:00:29]}  Rg3+ {[%clk 0:00:12]} 42. Kc4 {[%clk 0:00:28]}  d3 {[%clk 0:00:12]} 43. Rd2 {[%clk 0:00:27]}  Kc7 {[%clk 0:00:10]} 44. Bd5 {[%clk 0:00:26]}  Rg5 {[%clk 0:00:08]} 45. Rxd3 {[%clk 0:00:26]}  Rxg2 {[%clk 0:00:08]} 46. Bxf7 {[%clk 0:00:26]}  Kb6 {[%clk 0:00:06]} 47. Kd5 {[%clk 0:00:25]}  Ka5 {[%clk 0:00:05]} 48. Ke6 {[%clk 0:00:25]}  Kb4 {[%clk 0:00:04]} 49. Ke7 {[%clk 0:00:24]}  Rc2 {[%clk 0:00:02]} 50. Rd7 {[%clk 0:00:23]}  Rc7 {[%clk 0:00:03]} 51. Rxc7 {[%clk 0:00:23]}  Bxc7 {[%clk 0:00:04]} 52. Kxf6 {[%clk 0:00:22]}  Ka5 {[%clk 0:00:03]} 53. Bc4 {[%clk 0:00:22]}  Kb4 {[%clk 0:00:04]} 54. e5 {[%clk 0:00:23]}  Kc5 {[%clk 0:00:05]} 55. e6 {[%clk 0:00:23]}  Bd8+ {[%clk 0:00:03]} 56. e7 {[%clk 0:00:23]}  Bxe7+ {[%clk 0:00:01]} 57. Kxe7 {[%clk 0:00:24]}  Kb4 {[%clk 0:00:02]} 58. Kd6 {[%clk 0:00:24]}  Ka5 {[%clk 0:00:03]} 59. Bg8 {[%clk 0:00:23]}  Kb4 {[%clk 0:00:03]} 60. Kc6 {[%clk 0:00:22]}  Ka5 {[%clk 0:00:03]} 61. Kb7 {[%clk 0:00:22]}  Kb4 {[%clk 0:00:04]} 62. Kb6 {[%clk 0:00:22]}  Ka3 {[%clk 0:00:04]} 63. a5 {[%clk 0:00:23]}  Kb4 {[%clk 0:00:05]} 64. a6 {[%clk 0:00:23]}  Kc3 {[%clk 0:00:04]} 65. a7 {[%clk 0:00:24]} 1-0


[Site "https://www.chess.com"]

[Event "Titled Tuesday Blitz November 14 Late 2023"]
[White "Mazurkiewicz, Michal"]
[Black "Novikova, Margarita"]
[WhiteFideId "1124943"]
[BlackFideId "14109689"]
[WhiteElo "2424"]
[BlackElo "2189"]
[Result "1-0"]
[Round "10"]
[TimeControl "180+1"]
[Date "2023.11.14"]
[WhiteClock "0:00:22"]
[BlackClock "0:00:12"]
[Board "72"]

1. e4 {[%clk 0:02:59]}  d5 {[%clk 0:02:59]} 2. exd5 {[%clk 0:02:59]}  Qxd5 {[%clk 0:02:56]} 3. d3 {[%clk 0:03:00]}  e5 {[%clk 0:02:55]} 4. Nc3 {[%clk 0:03:00]}  Qd8 {[%clk 0:02:55]} 5. Nf3 {[%clk 0:03:00]}  Nc6 {[%clk 0:02:55]} 6. g3 {[%clk 0:02:59]}  Nf6 {[%clk 0:02:54]} 7. Bg2 {[%clk 0:02:59]}  Bc5 {[%clk 0:02:54]} 8. O-O {[%clk 0:03:00]}  O-O {[%clk 0:02:54]} 9. h3 {[%clk 0:02:59]}  h6 {[%clk 0:02:54]} 10. Re1 {[%clk 0:02:59]}  Re8 {[%clk 0:02:54]} 11. Be3 {[%clk 0:02:56]}  Bxe3 {[%clk 0:02:52]} 12. Rxe3 {[%clk 0:02:57]}  a6 {[%clk 0:02:45]} 13. Qe2 {[%clk 0:02:57]}  Qd6 {[%clk 0:02:43]} 14. Re1 {[%clk 0:02:56]}  Nd7 {[%clk 0:02:40]} 15. Ne4 {[%clk 0:02:35]}  Qf8 {[%clk 0:02:33]} 16. Nc3 {[%clk 0:02:32]}  Qd6 {[%clk 0:02:30]} 17. Qd1 {[%clk 0:02:24]}  Nf8 {[%clk 0:02:18]} 18. d4 {[%clk 0:02:16]}  f6 {[%clk 0:02:16]} 19. dxe5 {[%clk 0:02:13]}  Nxe5 {[%clk 0:02:14]} 20. Qxd6 {[%clk 0:01:59]}  cxd6 {[%clk 0:02:08]} 21. Nd4 {[%clk 0:01:58]}  Rd8 {[%clk 0:02:02]} 22. f4 {[%clk 0:01:52]}  Ned7 {[%clk 0:01:48]} 23. Nd5 {[%clk 0:01:51]}  Nc5 {[%clk 0:01:37]} 24. Nb6 {[%clk 0:01:49]}  Rb8 {[%clk 0:01:33]} 25. Bd5+ {[%clk 0:01:48]}  Kh8 {[%clk 0:01:32]} 26. f5 {[%clk 0:01:34]}  Ncd7 {[%clk 0:01:28]} 27. Re8 {[%clk 0:01:28]}  Rxe8 {[%clk 0:01:07]} 28. Rxe8 {[%clk 0:01:29]}  Kh7 {[%clk 0:01:02]} 29. Nxc8 {[%clk 0:01:24]}  Nb6 {[%clk 0:00:58]} 30. Rxf8 {[%clk 0:01:16]}  Nxd5 {[%clk 0:00:56]} 31. Ne6 {[%clk 0:01:04]}  Ne3 {[%clk 0:00:53]} 32. g4 {[%clk 0:00:46]}  Nxc2 {[%clk 0:00:50]} 33. Re8 {[%clk 0:00:46]}  h5 {[%clk 0:00:47]} 34. gxh5 {[%clk 0:00:31]}  d5 {[%clk 0:00:45]} 35. h4 {[%clk 0:00:29]}  d4 {[%clk 0:00:42]} 36. Kf2 {[%clk 0:00:26]}  d3 {[%clk 0:00:42]} 37. Kf3 {[%clk 0:00:22]}  b5 {[%clk 0:00:37]} 38. Nf8+ {[%clk 0:00:21]}  Kh6 {[%clk 0:00:34]} 39. Ng6 {[%clk 0:00:22]}  Nd4+ {[%clk 0:00:12]} 40. Kg4 {[%clk 0:00:22]} 1-0


[Site "https://www.chess.com"]

[Event "Titled Tuesday Blitz November 14 Late 2023"]
[White "Cardozo Munar, Carlos Eduardo"]
[Black "Reprintsev, Alexander"]
[WhiteFideId "4409477"]
[BlackFideId "14100541"]
[WhiteElo "2288"]
[BlackElo "2477"]
[Result "0-1"]
[Round "10"]
[TimeControl "180+1"]
[Date "2023.11.14"]
[WhiteClock "0:00:51"]
[BlackClock "0:02:13"]
[Board "77"]

1. e4 {[%clk 0:03:00]}  d5 {[%clk 0:02:52]} 2. exd5 {[%clk 0:02:59]}  Qxd5 {[%clk 0:02:52]} 3. Nf3 {[%clk 0:03:00]}  Bg4 {[%clk 0:02:51]} 4. Be2 {[%clk 0:02:59]}  Nc6 {[%clk 0:02:51]} 5. O-O {[%clk 0:02:59]}  O-O-O {[%clk 0:02:51]} 6. Nc3 {[%clk 0:02:58]}  Qd7 {[%clk 0:02:50]} 7. d3 {[%clk 0:02:56]}  e5 {[%clk 0:02:50]} 8. Be3 {[%clk 0:02:55]}  f5 {[%clk 0:02:49]} 9. h3 {[%clk 0:02:41]}  h5 {[%clk 0:02:49]} 10. Bg5 {[%clk 0:02:33]}  Be7 {[%clk 0:02:48]} 11. Bxe7 {[%clk 0:02:33]}  Ngxe7 {[%clk 0:02:48]} 12. hxg4 {[%clk 0:02:04]}  hxg4 {[%clk 0:02:48]} 13. Nh2 {[%clk 0:02:05]}  g3 {[%clk 0:02:43]} 14. fxg3 {[%clk 0:02:02]}  Qd4+ {[%clk 0:02:43]} 15. Rf2 {[%clk 0:01:51]}  Rxh2 {[%clk 0:02:42]} 16. Kxh2 {[%clk 0:01:52]}  Qxf2 {[%clk 0:02:42]} 17. Bh5 {[%clk 0:01:22]}  Rh8 {[%clk 0:02:40]} 18. g4 {[%clk 0:01:22]}  g6 {[%clk 0:02:35]} 19. Qb1 {[%clk 0:00:51]}  fxg4 {[%clk 0:02:13]} 0-1


[Site "https://www.chess.com"]

[Event "Titled Tuesday Blitz November 14 Late 2023"]
[White "Polaczek, Richard"]
[Black "Romero Ruscalleda, Josep"]
[WhiteFideId "200026"]
[BlackFideId "2231859"]
[WhiteElo "2427"]
[BlackElo "2325"]
[Result "1-0"]
[Round "10"]
[TimeControl "180+1"]
[Date "2023.11.14"]
[WhiteClock "0:00:07"]
[BlackClock "0:00:33"]
[Board "78"]

1. d4 {[%clk 0:02:58]}  g6 {[%clk 0:02:59]} 2. e4 {[%clk 0:02:57]}  Bg7 {[%clk 0:02:59]} 3. Nc3 {[%clk 0:02:57]}  d6 {[%clk 0:03:00]} 4. Bg5 {[%clk 0:02:56]}  Nd7 {[%clk 0:02:59]} 5. Qd2 {[%clk 0:02:53]}  c5 {[%clk 0:02:59]} 6. dxc5 {[%clk 0:02:48]}  Nxc5 {[%clk 0:02:58]} 7. O-O-O {[%clk 0:02:46]}  Qa5 {[%clk 0:02:56]} 8. Bb5+ {[%clk 0:02:36]}  Bd7 {[%clk 0:02:53]} 9. Bxd7+ {[%clk 0:02:35]}  Nxd7 {[%clk 0:02:53]} 10. Nge2 {[%clk 0:02:30]}  Rc8 {[%clk 0:02:51]} 11. Kb1 {[%clk 0:02:27]}  Ngf6 {[%clk 0:02:48]} 12. f3 {[%clk 0:02:21]}  a6 {[%clk 0:02:40]} 13. h4 {[%clk 0:02:20]}  Ne5 {[%clk 0:02:33]} 14. Bxf6 {[%clk 0:02:03]}  Nc4 {[%clk 0:02:15]} 15. Qd5 {[%clk 0:01:41]}  Bxf6 {[%clk 0:02:07]} 16. Qxa5 {[%clk 0:01:37]}  Nxa5 {[%clk 0:02:07]} 17. Nd5 {[%clk 0:01:36]}  Bg7 {[%clk 0:02:07]} 18. c3 {[%clk 0:01:28]}  Nc4 {[%clk 0:01:59]} 19. b3 {[%clk 0:01:23]}  Na3+ {[%clk 0:01:53]} 20. Kb2 {[%clk 0:01:22]}  Nb5 {[%clk 0:01:53]} 21. a4 {[%clk 0:01:20]}  Nc7 {[%clk 0:01:51]} 22. Nb6 {[%clk 0:01:19]}  Rd8 {[%clk 0:01:50]} 23. Kc2 {[%clk 0:01:11]}  e6 {[%clk 0:01:44]} 24. c4 {[%clk 0:01:10]}  Ke7 {[%clk 0:01:43]} 25. h5 {[%clk 0:00:57]}  Na8 {[%clk 0:01:42]} 26. Nxa8 {[%clk 0:00:54]}  Rxa8 {[%clk 0:01:42]} 27. Nc3 {[%clk 0:00:36]}  b5 {[%clk 0:01:36]} 28. hxg6 {[%clk 0:00:24]}  bxc4 {[%clk 0:01:27]} 29. Rxh7 {[%clk 0:00:21]}  cxb3+ {[%clk 0:01:23]} 30. Kd3 {[%clk 0:00:19]}  Rxh7 {[%clk 0:01:18]} 31. gxh7 {[%clk 0:00:19]}  Rc8 {[%clk 0:01:15]} 32. Ne2 {[%clk 0:00:17]}  b2 {[%clk 0:01:13]} 33. Rb1 {[%clk 0:00:15]}  Kf6 {[%clk 0:01:09]} 34. Rxb2 {[%clk 0:00:12]}  Kg6 {[%clk 0:01:09]} 35. Rb6 {[%clk 0:00:12]}  a5 {[%clk 0:01:05]} 36. Rxd6 {[%clk 0:00:11]}  Kxh7 {[%clk 0:01:05]} 37. Rd7 {[%clk 0:00:11]}  Kg6 {[%clk 0:01:05]} 38. Nf4+ {[%clk 0:00:10]}  Kf6 {[%clk 0:01:05]} 39. Nh5+ {[%clk 0:00:10]}  Kg6 {[%clk 0:01:05]} 40. Nxg7 {[%clk 0:00:10]}  Kxg7 {[%clk 0:01:06]} 41. Ra7 {[%clk 0:00:10]}  Rd8+ {[%clk 0:01:05]} 42. Ke3 {[%clk 0:00:09]}  Rd1 {[%clk 0:01:01]} 43. Rxa5 {[%clk 0:00:10]}  Rg1 {[%clk 0:01:01]} 44. Kf2 {[%clk 0:00:10]}  Ra1 {[%clk 0:01:01]} 45. Kg3 {[%clk 0:00:10]}  Kf6 {[%clk 0:01:00]} 46. Kf4 {[%clk 0:00:10]}  Ra2 {[%clk 0:00:58]} 47. e5+ {[%clk 0:00:09]}  Kg6 {[%clk 0:00:58]} 48. g4 {[%clk 0:00:10]}  Ra3 {[%clk 0:00:57]} 49. Kg3 {[%clk 0:00:09]}  Rb3 {[%clk 0:00:57]} 50. Ra7 {[%clk 0:00:09]}  Re3 {[%clk 0:00:57]} 51. Ra5 {[%clk 0:00:08]}  Ra3 {[%clk 0:00:55]} 52. Ra7 {[%clk 0:00:07]}  Re3 {[%clk 0:00:54]} 53. Kf4 {[%clk 0:00:07]}  Ra3 {[%clk 0:00:53]} 54. a5 {[%clk 0:00:07]}  Ra4+ {[%clk 0:00:52]} 55. Kg3 {[%clk 0:00:08]}  f6 {[%clk 0:00:50]} 56. exf6 {[%clk 0:00:07]}  Kxf6 {[%clk 0:00:50]} 57. Ra8 {[%clk 0:00:07]}  e5 {[%clk 0:00:49]} 58. a6 {[%clk 0:00:07]}  e4 {[%clk 0:00:49]} 59. fxe4 {[%clk 0:00:07]}  Rxe4 {[%clk 0:00:49]} 60. Rb8 {[%clk 0:00:07]}  Re3+ {[%clk 0:00:47]} 61. Kh4 {[%clk 0:00:07]}  Ra3 {[%clk 0:00:46]} 62. Rb6+ {[%clk 0:00:07]}  Kg7 {[%clk 0:00:46]} 63. Kh5 {[%clk 0:00:07]}  Ra5+ {[%clk 0:00:44]} 64. g5 {[%clk 0:00:07]}  Ra1 {[%clk 0:00:44]} 65. Rb7+ {[%clk 0:00:07]}  Kg8 {[%clk 0:00:42]} 66. a7 {[%clk 0:00:08]}  Ra6 {[%clk 0:00:39]} 67. g6 {[%clk 0:00:07]}  Ra5+ {[%clk 0:00:38]} 68. Kh6 {[%clk 0:00:07]}  Kf8 {[%clk 0:00:35]} 69. Rb8+ {[%clk 0:00:07]}  Ke7 {[%clk 0:00:33]} 70. a8=Q {[%clk 0:00:07]} 1-0


[Site "https://www.chess.com"]

[Event "Titled Tuesday Blitz November 14 Late 2023"]
[White "Kustar, Sandor"]
[Black "Rodriguez Dominguez, Melissa"]
[WhiteFideId "702900"]
[BlackFideId "3517560"]
[WhiteElo "2424"]
[BlackElo "2241"]
[Result "1-0"]
[Round "10"]
[TimeControl "180+1"]
[Date "2023.11.14"]
[WhiteClock "0:02:35"]
[BlackClock "0:02:10"]
[Board "79"]

1. Nf3 {[%clk 0:03:00]}  Nf6 {[%clk 0:02:58]} 2. c4 {[%clk 0:03:00]}  d5 {[%clk 0:02:55]} 3. cxd5 {[%clk 0:03:00]}  Nxd5 {[%clk 0:02:55]} 4. d4 {[%clk 0:02:58]}  c5 {[%clk 0:02:49]} 5. e4 {[%clk 0:02:57]}  Nb4 {[%clk 0:02:45]} 6. a3 {[%clk 0:02:56]}  N4c6 {[%clk 0:02:42]} 7. d5 {[%clk 0:02:56]}  Na5 {[%clk 0:02:41]} 8. b4 {[%clk 0:02:46]}  cxb4 {[%clk 0:02:26]} 9. axb4 {[%clk 0:02:46]}  e6 {[%clk 0:02:26]} 10. bxa5 {[%clk 0:02:45]}  Bb4+ {[%clk 0:02:24]} 11. Bd2 {[%clk 0:02:46]}  Bxd2+ {[%clk 0:02:24]} 12. Qxd2 {[%clk 0:02:44]}  O-O {[%clk 0:02:24]} 13. Nc3 {[%clk 0:02:44]}  exd5 {[%clk 0:02:23]} 14. exd5 {[%clk 0:02:35]}  Re8+ {[%clk 0:02:10]} 15. Be2 {[%clk 0:02:35]} 1-0


[Site "https://www.chess.com"]

[Event "Titled Tuesday Blitz November 14 Late 2023"]
[White "Weisz, Bryan"]
[Black "Floresvillar Gonzalez, Luis Migu"]
[WhiteFideId "30934133"]
[BlackFideId "5100542"]
[WhiteElo "2413"]
[BlackElo "2211"]
[Result "1-0"]
[Round "10"]
[TimeControl "180+1"]
[Date "2023.11.14"]
[WhiteClock "0:00:53"]
[BlackClock "0:00:09"]
[Board "83"]

1. c3 {[%clk 0:03:00]}  d5 {[%clk 0:02:58]} 2. e4 {[%clk 0:02:59]}  dxe4 {[%clk 0:02:57]} 3. Qa4+ {[%clk 0:03:00]}  c6 {[%clk 0:02:56]} 4. Qxe4 {[%clk 0:03:00]}  Nf6 {[%clk 0:02:54]} 5. Qc2 {[%clk 0:03:00]}  Bg4 {[%clk 0:02:51]} 6. d4 {[%clk 0:02:58]}  Nbd7 {[%clk 0:02:48]} 7. Bd3 {[%clk 0:02:57]}  e5 {[%clk 0:02:46]} 8. Be3 {[%clk 0:02:54]}  Bd6 {[%clk 0:02:36]} 9. Ne2 {[%clk 0:02:48]}  O-O {[%clk 0:02:33]} 10. Nd2 {[%clk 0:02:47]}  Re8 {[%clk 0:02:29]} 11. f3 {[%clk 0:02:42]}  Bh5 {[%clk 0:02:28]} 12. h4 {[%clk 0:02:40]}  Bg6 {[%clk 0:02:27]} 13. g4 {[%clk 0:02:31]}  Bxd3 {[%clk 0:02:25]} 14. Qxd3 {[%clk 0:02:31]}  exd4 {[%clk 0:02:17]} 15. Bxd4 {[%clk 0:02:27]}  Bg3+ {[%clk 0:02:02]} 16. Kf1 {[%clk 0:02:22]}  Be5 {[%clk 0:02:01]} 17. h5 {[%clk 0:02:16]}  c5 {[%clk 0:01:57]} 18. Bf2 {[%clk 0:02:01]}  Nf8 {[%clk 0:01:44]} 19. Qc2 {[%clk 0:01:56]}  b6 {[%clk 0:01:41]} 20. g5 {[%clk 0:01:41]}  Nd5 {[%clk 0:01:40]} 21. Ne4 {[%clk 0:01:38]}  Ne6 {[%clk 0:01:31]} 22. Rd1 {[%clk 0:01:37]}  c4 {[%clk 0:01:20]} 23. g6 {[%clk 0:01:34]}  fxg6 {[%clk 0:01:17]} 24. hxg6 {[%clk 0:01:34]}  h6 {[%clk 0:01:18]} 25. Qd2 {[%clk 0:01:16]}  Nec7 {[%clk 0:01:13]} 26. Nd4 {[%clk 0:01:03]}  Bxd4 {[%clk 0:00:44]} 27. Bxd4 {[%clk 0:00:57]}  Re6 {[%clk 0:00:44]} 28. Rxh6 {[%clk 0:00:55]}  Rxe4 {[%clk 0:00:20]} 29. Rh8+ {[%clk 0:00:54]}  Kxh8 {[%clk 0:00:09]} 30. Qh6+ {[%clk 0:00:53]} 1-0


[Site "https://www.chess.com"]

[Event "Titled Tuesday Blitz November 14 Late 2023"]
[White "Kuegel, Tobias"]
[Black "Ghosh, Chanchal Kumer"]
[WhiteFideId "4636295"]
[BlackFideId "10201858"]
[WhiteElo "2334"]
[BlackElo "2179"]
[Result "1-0"]
[Round "10"]
[TimeControl "180+1"]
[Date "2023.11.14"]
[WhiteClock "0:00:14"]
[BlackClock "0:00:00"]
[Board "86"]

1. e4 {[%clk 0:03:00]}  c5 {[%clk 0:03:00]} 2. Nf3 {[%clk 0:02:52]}  d6 {[%clk 0:02:59]} 3. d4 {[%clk 0:02:52]}  cxd4 {[%clk 0:03:00]} 4. Nxd4 {[%clk 0:02:52]}  Nf6 {[%clk 0:03:01]} 5. f3 {[%clk 0:02:53]}  Nc6 {[%clk 0:02:56]} 6. c4 {[%clk 0:02:53]}  e5 {[%clk 0:02:50]} 7. Nc2 {[%clk 0:02:53]}  Nxe4 {[%clk 0:02:44]} 8. fxe4 {[%clk 0:02:50]}  Qh4+ {[%clk 0:02:43]} 9. Kd2 {[%clk 0:02:48]}  Qxe4 {[%clk 0:02:00]} 10. Nc3 {[%clk 0:02:37]}  Qf4+ {[%clk 0:01:57]} 11. Ke2 {[%clk 0:02:37]}  Bg4+ {[%clk 0:01:54]} 12. Ke1 {[%clk 0:02:33]}  Bxd1 {[%clk 0:01:52]} 13. Bxf4 {[%clk 0:02:32]}  Bxc2 {[%clk 0:01:51]} 14. Be3 {[%clk 0:02:32]}  Bf5 {[%clk 0:01:39]} 15. Nd5 {[%clk 0:02:30]}  Rc8 {[%clk 0:01:38]} 16. b4 {[%clk 0:02:28]}  Be6 {[%clk 0:01:37]} 17. b5 {[%clk 0:02:15]}  Bxd5 {[%clk 0:01:36]} 18. cxd5 {[%clk 0:02:14]}  Nb4 {[%clk 0:01:35]} 19. Kf2 {[%clk 0:02:04]}  Be7 {[%clk 0:01:06]} 20. Bxa7 {[%clk 0:01:53]}  O-O {[%clk 0:01:04]} 21. a4 {[%clk 0:01:47]}  Rc2+ {[%clk 0:00:55]} 22. Be2 {[%clk 0:01:40]}  Nxd5 {[%clk 0:00:50]} 23. Rhc1 {[%clk 0:01:36]}  Rfc8 {[%clk 0:00:47]} 24. Rxc2 {[%clk 0:01:35]}  Rxc2 {[%clk 0:00:46]} 25. Ke1 {[%clk 0:01:16]}  Nc3 {[%clk 0:00:32]} 26. Bd3 {[%clk 0:01:06]}  Rxg2 {[%clk 0:00:27]} 27. a5 {[%clk 0:01:00]}  Nxb5 {[%clk 0:00:15]} 28. Bxb5 {[%clk 0:00:57]}  d5 {[%clk 0:00:15]} 29. Kf1 {[%clk 0:00:48]}  Rxh2 {[%clk 0:00:14]} 30. Kg1 {[%clk 0:00:46]}  Rb2 {[%clk 0:00:14]} 31. Bf1 {[%clk 0:00:43]}  f5 {[%clk 0:00:12]} 32. Rc1 {[%clk 0:00:36]}  Kf7 {[%clk 0:00:11]} 33. Rc7 {[%clk 0:00:35]}  Ke6 {[%clk 0:00:11]} 34. Bb6 {[%clk 0:00:34]}  f4 {[%clk 0:00:06]} 35. Bh3+ {[%clk 0:00:24]}  Kf6 {[%clk 0:00:04]} 36. Rxb7 {[%clk 0:00:23]}  Bc5+ {[%clk 0:00:02]} 37. Kf1 {[%clk 0:00:15]}  f3 {[%clk 0:00:00]} 38. Bd8+ {[%clk 0:00:14]} 1-0


[Site "https://www.chess.com"]

[Event "Titled Tuesday Blitz November 14 Late 2023"]
[White "AndresDelgado77"]
[Black "Oliveira, Tiago Batista"]
[BlackFideId "2108291"]
[WhiteElo "2303"]
[BlackElo "2056"]
[Result "0-1"]
[Round "10"]
[TimeControl "180+1"]
[Date "2023.11.14"]
[WhiteClock "0:00:00"]
[BlackClock "0:00:09"]
[Board "93"]

1. e4 {[%clk 0:03:00]}  e5 {[%clk 0:02:57]} 2. Nc3 {[%clk 0:02:54]}  Nc6 {[%clk 0:02:57]} 3. f4 {[%clk 0:02:53]}  exf4 {[%clk 0:02:53]} 4. d4 {[%clk 0:02:53]}  Be7 {[%clk 0:02:54]} 5. Bxf4 {[%clk 0:02:46]}  Bh4+ {[%clk 0:02:39]} 6. g3 {[%clk 0:02:43]}  Bg5 {[%clk 0:02:36]} 7. Bxg5 {[%clk 0:02:28]}  Qxg5 {[%clk 0:02:35]} 8. Nd5 {[%clk 0:02:28]}  Qd8 {[%clk 0:02:35]} 9. Qg4 {[%clk 0:02:27]}  Kf8 {[%clk 0:02:26]} 10. O-O-O {[%clk 0:02:21]}  d6 {[%clk 0:02:22]} 11. Qf4 {[%clk 0:02:20]}  Nf6 {[%clk 0:02:07]} 12. Nf3 {[%clk 0:01:57]}  Bg4 {[%clk 0:01:52]} 13. Nxf6 {[%clk 0:01:39]}  Bxf3 {[%clk 0:01:50]} 14. Nxh7+ {[%clk 0:01:36]}  Rxh7 {[%clk 0:01:50]} 15. Qxf3 {[%clk 0:01:36]}  Qg5+ {[%clk 0:01:41]} 16. Kb1 {[%clk 0:01:35]}  Re8 {[%clk 0:01:34]} 17. Bc4 {[%clk 0:01:30]}  f6 {[%clk 0:01:32]} 18. h4 {[%clk 0:01:25]}  Qh5 {[%clk 0:01:32]} 19. g4 {[%clk 0:01:24]}  Qg6 {[%clk 0:01:30]} 20. e5 {[%clk 0:01:13]}  dxe5 {[%clk 0:01:28]} 21. Bd3 {[%clk 0:01:13]}  e4 {[%clk 0:01:28]} 22. d5 {[%clk 0:00:57]}  exd3 {[%clk 0:01:12]} 23. cxd3 {[%clk 0:00:55]}  Ne5 {[%clk 0:01:11]} 24. h5 {[%clk 0:00:48]}  Qxg4 {[%clk 0:01:05]} 25. Qe3 {[%clk 0:00:43]}  Rxh5 {[%clk 0:00:47]} 26. Rhg1 {[%clk 0:00:38]}  Qf5 {[%clk 0:00:44]} 27. Qc5+ {[%clk 0:00:30]}  Kf7 {[%clk 0:00:35]} 28. Qxc7+ {[%clk 0:00:25]}  Re7 {[%clk 0:00:36]} 29. Rxg7+ {[%clk 0:00:24]}  Kxg7 {[%clk 0:00:34]} 30. Qxe7+ {[%clk 0:00:24]}  Kh6 {[%clk 0:00:18]} 31. Qf8+ {[%clk 0:00:20]}  Kg5 {[%clk 0:00:18]} 32. Qg7+ {[%clk 0:00:09]}  Kf4 {[%clk 0:00:18]} 33. Rf1+ {[%clk 0:00:08]}  Nf3 {[%clk 0:00:18]} 34. Kc2 {[%clk 0:00:03]}  Rh2+ {[%clk 0:00:16]} 35. Kc3 {[%clk 0:00:03]}  Qe5+ {[%clk 0:00:10]} 36. Kc4 {[%clk 0:00:00]}  Qd4+ {[%clk 0:00:09]} 0-1


[Site "https://www.chess.com"]